bitfinex/quotes_ETHUSD_20251118
["timestamp","ask_amount","ask_price","bid_price","bid_amount"]
[1763425727592,0.90699264,3029.4,3029.3,2.378921]
[1763425728309,0.90699264,3029.4,3029.3,0.9805]
[1763425728888,0.90699264,3029.4,3029.3,0.4958]
[1763425729130,0.90699264,3029.4,3029.1,5.0]
[1763425729329,0.90699264,3029.4,3029.1,5.9301379]
[1763425729549,0.002,3030.1,3029.4,0.405504]
[1763425729724,0.002,3030.1,3030.0,0.4958]
[1763425730115,0.002,3030.1,3030.0,0.9805]
[1763425730845,0.002,3030.1,3030.0,1.386004]
[1763425731044,0.0002426,3030.1,3030.0,10.32581675]
[1763425731210,0.0002426,3030.1,3030.0,7.32171431]
[1763425732401,0.002,3030.5,3030.0,7.32171431]
[1763425732602,0.002,3030.5,3030.4,0.6831]
[1763425732939,0.002,3030.5,3030.4,1.088604]
[1763425733113,0.002,3030.5,3030.4,1.573304]
[1763425733312,0.002,3030.5,3030.4,2.14039225]
[1763425733708,0.002,3030.5,3030.4,2.17339119]
[1763425734646,0.002,3030.5,3030.4,1.73488825]
[1763425734818,0.002,3030.5,3030.4,4.02473714]
[1763425735022,0.002,3030.5,3030.4,4.50943714]
[1763425735221,0.002,3030.5,3030.4,1.54758825]
[1763425736133,0.002,3030.5,3030.4,6.54758825]
[1763425736440,0.002,3030.5,3030.4,6.06288825]
[1763425737527,0.5008,3030.5,3030.4,5.0]
[1763425738159,0.002,3030.5,3030.3,2.36794742]
[1763425738724,0.002,3030.5,3030.4,0.9805]
[1763425739146,0.002,3030.5,3030.4,5.9805]
[1763425739349,0.002,3030.5,3030.4,8.34844742]
[1763425739536,0.002,3030.5,3030.4,9.18329216]
[1763425740331,0.002,3030.5,3030.4,7.22084874]
[1763425740843,0.002,3030.5,3030.4,9.7727967]
[1763425741029,0.002,3030.5,3030.4,5.4958]
[1763425741429,0.002,3030.5,3030.4,5.0]
[1763425741728,0.002,3030.5,3030.4,7.36636433]
[1763425742128,0.002,3030.5,3030.4,7.86216433]
[1763425742442,0.002,3030.5,3030.4,7.36636433]
[1763425742960,0.002,3030.5,3030.4,7.86216433]
[1763425743132,0.002,3030.5,3030.4,8.15258076]
[1763425743332,0.002,3030.5,3030.4,7.36636433]
[1763425743651,0.002,3030.5,3030.4,5.0]
[1763425744059,0.002,3030.5,3030.3,7.36636433]
[1763425744365,0.002,3030.9,3030.4,1.386004]
[1763425744567,0.002,3030.9,3030.8,0.901304]
[1763425744984,0.002,3030.9,3030.8,1.386004]
[1763425745345,0.002,3030.9,3030.8,0.9805]
[1763425745773,0.002,3030.9,3030.8,1.01349458]
[1763425746069,0.002,3030.9,3030.8,5.9805]
[1763425746275,0.002,3030.9,3030.8,6.87418208]
[1763425746976,1.84359264,3030.9,3030.8,5.0]
[1763425747169,1.84359264,3030.9,3030.4,2.36247319]
[1763425747371,7.04739812,3030.5,3030.4,2.36247319]
[1763425748073,0.90699264,3030.5,3030.4,7.85287319]
[1763425748278,0.90699264,3030.5,3030.4,8.63816051]
[1763425748499,0.90699264,3030.5,3030.4,6.27568732]
[1763425748879,0.90699264,3030.5,3030.4,7.16719132]
[1763425749786,0.90699264,3030.5,3030.4,6.68119132]
[1763425750079,0.90699264,3030.5,3030.4,5.78528732]
[1763425750464,0.90699264,3030.5,3030.4,7.36318845]
[1763425750982,0.90699264,3030.5,3030.4,7.85358845]
[1763425751749,0.90699264,3030.5,3030.4,7.36318845]
[1763425752152,0.90699264,3030.5,3030.4,7.85358845]
[1763425752562,0.90699264,3030.5,3030.4,7.36318845]
[1763425753086,0.90699264,3030.4,3030.2,2.36318845]
[1763425753259,7.04739812,3030.3,3030.1,2.36318845]
[1763425753462,0.90699264,3030.2,3030.1,2.36318845]
[1763425753657,1.65069264,3030.2,3030.0,2.36418845]
[1763425753858,0.7461,3030.1,3030.0,0.001]
[1763425760896,1.151604,3030.1,3030.0,0.001]
[1763425761790,0.7461,3030.1,3030.0,0.001]
[1763425764281,1.65309264,3030.1,3030.0,0.001]
[1763425767997,1.98349264,3030.1,3030.0,0.001]
[1763425768203,3.30951759,3030.1,3030.0,0.001]
[1763425768413,2.97911759,3030.1,3030.0,0.001]
[1763425774704,4.65399413,3030.1,3030.0,0.001]
[1763425774909,2.97911759,3030.1,3030.0,0.001]
[1763425778027,3.31071759,3030.1,3030.0,0.001]
[1763425778523,2.48461759,3030.1,3030.0,0.001]
[1763425778698,2.95801759,3030.1,3030.0,0.001]
[1763425782658,0.90699264,3029.5,3029.3,0.001]
[1763425782858,7.28819812,3029.4,3029.3,0.001]
[1763425783042,13.63619812,3029.4,3029.3,0.001]
[1763425783247,14.10959812,3029.4,3029.3,0.001]
[1763425783456,13.63619812,3029.4,3029.3,0.001]
[1763425784755,14.10959812,3029.4,3029.3,0.001]
[1763425786359,13.63619812,3029.4,3029.3,0.001]
[1763425788239,0.90699264,3029.2,3028.8,2.36318845]
[1763425788432,7.04739812,3028.9,3028.8,2.36318845]
[1763425788632,7.04739812,3028.9,3028.8,0.28442884]
[1763425788864,7.04739812,3028.9,3028.8,0.4709]
[1763425789036,6.14040548,3029.3,3029.1,5.0]
[1763425789556,6.14040548,3029.3,3029.2,1.1446]
[1763425790171,6.14040548,3029.3,3029.2,6.1446]
[1763425791083,7.04739812,3029.3,3029.2,6.1446]
[1763425791280,7.04739812,3029.3,3029.2,6.75906]
[1763425792149,7.04739812,3029.3,3029.2,1.75906]
[1763425793159,7.04739812,3029.3,3029.2,6.75906]
[1763425794258,7.04739812,3029.3,3029.2,1.75906]
[1763425795456,7.04739812,3029.3,3029.2,0.4709]
[1763425796157,7.04739812,3029.3,3029.2,0.951]
[1763425796352,7.04739812,3029.3,3029.2,0.4709]
[1763425796973,7.04739812,3029.3,3029.2,2.85338746]
[1763425797395,7.04739812,3029.3,3029.2,0.4709]
[1763425797909,0.90699264,3029.2,3029.1,0.001]
[1763425798275,1.17089264,3029.2,3029.1,2.38359677]
[1763425798615,0.90699264,3029.2,3029.1,2.38359677]
[1763425799184,0.90699264,3029.2,3029.1,2.85449677]
[1763425799385,0.90699264,3029.2,3029.1,3.13994645]
[1763425799693,0.90699264,3029.2,3029.1,0.75734968]
[1763425799893,0.90699264,3029.2,3029.1,0.4719]
[1763425800911,0.90699264,3029.2,3029.1,1.1456]
[1763425801141,0.90699264,3029.2,3029.1,6.1456]
[1763425801484,0.90699264,3029.2,3029.1,9.123619]
[1763425801683,0.90699264,3029.2,3029.1,6.1456]
[1763425801893,0.90699264,3029.2,3029.1,7.0579619]
[1763425802408,0.90699264,3029.2,3029.1,6.3842619]
[1763425802776,7.34037137,3029.2,3029.1,6.3842619]
[1763425803280,7.34037137,3029.2,3029.1,1.3842619]
[1763425803478,7.60427137,3029.2,3029.1,0.001]
[1763425803902,7.34037137,3029.2,3029.1,0.4719]
[1763425804102,7.34037137,3029.2,3029.1,1.1456]
[1763425805222,7.34037137,3029.2,3029.1,6.1456]
[1763425805710,7.34037137,3029.2,3029.1,5.001]
[1763425806111,7.34037137,3029.2,3029.1,3.03586011]
[1763425806306,7.34037137,3029.2,3029.1,1.40798601]
[1763425806543,7.34037137,3029.2,3029.1,1.1044]
[1763425808242,7.34037137,3029.2,3029.1,6.1044]
[1763425809023,7.34037137,3029.2,3029.1,1.1044]
[1763425810154,7.34037137,3029.2,3029.1,6.1044]
[1763425810447,1.6918352,3030.4,3029.1,6.1044]
[1763425810448,6.43337873,3029.7,3029.1,6.1044]
[1763425810647,6.43337873,3030.2,3029.8,0.4573]
[1763425810946,7.34037137,3029.9,3029.8,0.4573]
[1763425811171,7.34037137,3029.9,3029.8,2.83913223]
[1763425811329,0.90699264,3029.8,3029.7,2.38183223]
[1763425811525,0.90699264,3029.8,3029.7,0.23818322]
[1763425811727,1.16049264,3029.8,3029.6,2.38183223]
[1763425811921,1.16049264,3029.8,3029.2,4.039359]
[1763425811922,0.7398,3029.7,3029.3,2.38183223]
[1763425812251,7.34037137,3029.4,3029.3,2.38183223]
[1763425812678,7.34037137,3029.4,3029.3,0.9082]
[1763425812859,0.90699264,3029.4,3029.3,0.9082]
[1763425813061,0.90699264,3029.4,3029.3,1.5829852]
[1763425813638,0.90699264,3029.4,3029.3,1.1320852]
[1763425813835,0.90699264,3029.4,3029.3,1.5829852]
[1763425814049,0.90699264,3029.4,3029.3,6.5829852]
[1763425815040,0.90699264,3029.4,3029.3,1.5829852]
[1763425816052,0.90699264,3029.4,3029.3,6.5829852]
[1763425816553,0.90699264,3029.4,3029.3,6.1320852]
[1763425817065,0.90699264,3029.4,3029.3,1.1320852]
[1763425818044,0.90699264,3029.4,3029.3,1.5829852]
[1763425818458,0.90699264,3029.4,3029.3,1.1320852]
[1763425818770,0.90699264,3029.4,3029.2,5.0]
[1763425818771,1.19459264,3029.4,3029.2,5.0]
[1763425818965,1.19459264,3029.4,3029.3,2.38259406]
[1763425820660,0.90699264,3029.4,3029.3,2.86989406]
[1763425821057,1.19459264,3029.4,3029.3,2.38259406]
[1763425821280,1.19459264,3029.4,3029.2,2.38259406]
[1763425821655,0.2892,3029.3,3029.2,2.38259406]
[1763425822069,0.2892,3029.3,3029.2,2.38257001]
[1763425822275,0.90699264,3029.4,3029.2,2.38257001]
[1763425822667,0.90699264,3029.4,3029.3,0.4873]
[1763425822865,0.90699264,3029.4,3029.3,2.86987001]
[1763425824083,0.90699264,3029.4,3029.3,7.86987001]
[1763425824384,0.90699264,3029.4,3029.3,5.9631]
[1763425824585,0.90699264,3029.9,3029.3,5.9631]
[1763425824885,0.3316,3030.4,3029.5,2.38138611]
[1763425825072,0.002,3030.5,3029.8,2.86868611]
[1763425825276,0.002,3030.5,3029.8,2.38138611]
[1763425825590,0.2908,3029.9,3029.7,2.38138611]
[1763425825959,0.002,3030.5,3029.7,2.38138611]
[1763425826156,5.92532976,3029.8,3029.7,2.38138611]
[1763425826572,5.92532976,3029.8,3029.4,5.0]
[1763425826573,0.90699264,3029.7,3029.6,2.38138611]
[1763425826891,5.63452976,3029.7,3029.4,5.0]
[1763425827063,5.63452976,3029.7,3029.5,0.8453819]
[1763425827268,5.63452976,3029.7,3029.6,2.37954051]
[1763425827456,6.08472976,3029.7,3029.6,2.37954051]
[1763425827658,6.37552976,3029.7,3029.4,7.37954051]
[1763425827858,0.0029,3029.5,3029.4,5.0]
[1763425828082,0.0029,3029.5,3029.2,2.37954051]
[1763425828394,5.63452976,3029.3,3029.2,2.37954051]
[1763425828600,5.63452976,3029.3,3029.2,2.61759456]
[1763425828965,5.63452976,3029.3,3029.2,0.72535405]
[1763425829278,5.63452976,3029.3,3029.2,0.9631]
[1763425829659,5.63452976,3029.3,3029.2,0.4873]
[1763425830188,5.63452976,3029.3,3029.2,0.9631]
[1763425831061,5.63452976,3029.3,3029.2,8.941119]
[1763425831598,5.63452976,3029.3,3029.2,5.9631]
[1763425831782,5.63452976,3029.3,3029.2,6.97647791]
[1763425832758,0.90699264,3029.3,3029.2,6.97647791]
[1763425832962,0.90699264,3029.3,3029.2,9.95449691]
[1763425833363,0.90699264,3029.3,3029.2,6.97647791]
[1763425835578,0.90699264,3029.3,3029.2,6.50067791]
[1763425835987,0.90699264,3029.3,3029.2,6.99357791]
[1763425836984,0.90699264,3029.3,3029.2,6.50067791]
[1763425837186,0.90699264,3029.3,3029.2,5.4873]
[1763425838220,0.90699264,3029.3,3029.2,0.4873]
[1763425838818,0.90699264,3029.3,3029.2,0.9802]
[1763425839011,0.90699264,3029.3,3029.2,5.4873]
[1763425840002,0.90699264,3029.3,3029.2,5.9802]
[1763425840206,0.90699264,3029.3,3029.2,6.8959319]
[1763425840421,0.90699264,3029.3,3029.2,6.4030319]
[1763425841331,1.64839264,3029.3,3029.2,5.0]
[1763425842318,0.90699264,3029.2,3029.1,0.001]
[1763425842527,0.7414,3029.2,3029.1,0.001]
[1763425844133,7.99539264,3029.2,3029.1,0.001]
[1763425848127,7.50889264,3029.2,3029.1,0.001]
[1763425848332,7.99309264,3029.2,3029.1,0.001]
[1763425849226,7.50889264,3029.2,3029.1,0.001]
[1763425849533,7.25399264,3029.2,3029.1,0.466]
[1763425849708,7.25399264,3029.2,3029.1,0.001]
[1763425850114,7.50889264,3029.2,3029.1,0.001]
[1763425852239,7.99309264,3029.2,3029.1,0.001]
[1763425852909,7.25399264,3029.2,3029.1,0.466]
[1763425853640,7.25399264,3029.2,3029.1,0.001]
[1763425854518,7.51119264,3029.2,3029.1,0.001]
[1763425854723,9.15568621,3029.2,3029.1,0.001]
[1763425854925,13.88820905,3029.2,3029.1,0.001]
[1763425856045,12.72561548,3029.2,3029.1,0.001]
[1763425857642,12.69260292,3029.2,3029.1,0.001]
[1763425859523,12.21070292,3029.2,3029.1,0.001]
[1763425860244,5.89671548,3029.2,3029.1,0.001]
[1763425861442,6.37861548,3029.2,3029.1,0.001]
[1763425861632,7.01667703,3029.2,3029.1,0.001]
[1763425862048,5.89671548,3029.2,3029.1,0.001]
[1763425862352,6.37861548,3029.2,3029.1,0.001]
[1763425862550,6.37861548,3029.2,3029.1,0.466]
[1763425862551,5.63951548,3029.2,3029.1,0.466]
[1763425862847,10.36998284,3029.2,3029.1,0.466]
[1763425863054,5.63746,3029.2,3029.1,0.466]
[1763425863619,10.36792736,3029.2,3029.1,0.466]
[1763425863816,10.36792736,3029.2,3029.1,0.001]
[1763425864051,10.62282736,3029.2,3029.1,0.001]
[1763425864419,11.10702736,3029.2,3029.1,0.001]
[1763425867536,10.62282736,3029.2,3029.1,0.001]
[1763425867762,12.5715141,3029.2,3029.1,0.001]
[1763425867968,16.88247948,3029.2,3029.1,0.001]
[1763425868332,12.9031141,3029.2,3029.1,0.001]
[1763425868641,12.5715141,3029.2,3029.1,0.001]
[1763425869050,12.9031141,3029.2,3029.1,0.001]
[1763425869253,12.4976101,3029.2,3029.1,0.001]
[1763425869462,11.43512736,3029.2,3029.1,0.001]
[1763425870972,11.84063136,3029.2,3029.1,0.001]
[1763425872293,1.49349264,3029.2,3029.1,0.001]
[1763425872436,10.36792736,3029.2,3029.1,0.001]
[1763425872647,10.36792736,3029.2,3029.1,0.4981]
[1763425872953,9.46093472,3029.2,3029.1,1.1366]
[1763425873175,4.73046736,3029.2,3029.1,1.1366]
[1763425873479,4.73046736,3029.2,3029.1,1.75046]
[1763425873689,4.73046736,3029.2,3029.1,2.74404969]
[1763425873887,5.63746,3029.2,3029.1,2.74404969]
[1763425874079,5.63746,3029.2,3029.1,7.74404969]
[1763425874258,5.63746,3029.2,3029.1,6.75046]
[1763425874790,4.73046736,3029.2,3029.1,6.75046]
[1763425875473,5.63746,3029.2,3029.1,8.67565775]
[1763425875675,5.63746,3029.2,3029.1,6.1366]
[1763425876054,5.63746,3029.2,3029.1,8.51469775]
[1763425876385,5.63746,3029.2,3029.1,6.1366]
[1763425877080,5.63746,3029.2,3029.1,8.51406795]
[1763425877476,5.63746,3029.2,3029.1,5.4981]
[1763425878068,5.63746,3029.2,3029.1,0.4981]
[1763425879576,5.63746,3029.2,3029.1,1.1361]
[1763425880161,5.63746,3029.2,3029.1,6.1361]
[1763425880776,7.05578142,3029.2,3029.1,6.1361]
[1763425880973,7.05578142,3029.2,3029.1,0.001]
[1763425881589,7.33128142,3029.2,3029.1,0.001]
[1763425882104,7.05578142,3029.2,3029.1,0.001]
[1763425882594,7.05578142,3029.2,3029.1,0.4655]
[1763425882796,7.05578142,3029.2,3029.1,0.001]
[1763425883095,7.33128142,3029.2,3029.1,0.001]
[1763425883297,7.05578142,3029.2,3029.1,0.001]
[1763425883909,8.50085956,3029.2,3029.1,0.001]
[1763425884408,8.03705956,3029.2,3029.1,0.001]
[1763425884590,7.33128142,3029.2,3029.1,0.001]
[1763425884903,7.79508142,3029.2,3029.1,0.001]
[1763425885471,7.05578142,3029.2,3029.1,0.001]
[1763425885666,7.79508142,3029.2,3029.1,0.001]
[1763425886224,7.33328142,3029.2,3029.1,0.001]
[1763425886716,7.79708142,3029.2,3029.1,0.001]
[1763425887002,8.53060956,3029.2,3029.1,0.001]
[1763425887799,7.33328142,3029.2,3029.1,0.001]
[1763425888101,7.79708142,3029.2,3029.1,0.001]
[1763425888589,7.33328142,3029.2,3029.1,0.001]
[1763425888971,7.05778142,3029.2,3029.1,0.4655]
[1763425889269,7.33518142,3029.2,3029.1,0.001]
[1763425889668,8.57709956,3029.2,3029.1,0.001]
[1763425891016,9.31420356,3029.2,3029.1,0.001]
[1763425891605,1.88016992,3029.1,3029.0,0.001]
[1763425891910,6.90999522,3029.1,3029.0,0.001]
[1763425892107,10.80549922,3029.1,3028.9,0.001]
[1763425892310,0.90699264,3028.9,3028.8,0.001]
[1763425892482,6.40150103,3028.9,3028.8,0.001]
[1763425892691,7.20319649,3028.9,3028.8,0.001]
[1763425893835,11.35405457,3028.9,3028.7,0.001]
[1763425894126,13.54592967,3028.8,3028.7,0.001]
[1763425894284,3.895504,3028.6,3027.1,5.0]
[1763425894487,7.06308142,3027.2,3027.1,5.0]
[1763425894714,7.05578142,3027.2,3027.1,5.0]
[1763425895149,0.90699264,3027.1,3026.8,0.1837]
[1763425895296,0.90699264,3027.1,3027.0,0.4645]
[1763425897224,0.90699264,3027.1,3027.0,0.9466]
[1763425898120,0.90699264,3027.1,3027.0,5.9466]
[1763425898729,6.14878878,3027.6,3027.0,5.9466]
[1763425899027,0.90699264,3027.5,3027.1,1.1585]
[1763425899203,0.90699264,3027.5,3027.2,0.4821]
[1763425899523,0.90699264,3027.5,3027.4,0.488]
[1763425900024,0.90699264,3027.5,3027.4,0.9701]
[1763425900426,1.17129264,3027.5,3027.1,0.6764]
[1763425900598,1.17129264,3027.5,3027.0,5.0]
[1763425900599,7.05578142,3027.2,3027.0,5.0]
[1763425900800,7.05578142,3027.2,3027.1,1.1585]
[1763425903216,7.05578142,3027.2,3027.1,6.1585]
[1763425903600,7.05578142,3027.2,3027.1,5.6764]
[1763425903795,7.05578142,3027.2,3027.1,6.1585]
[1763425904121,7.05578142,3027.2,3027.1,1.1585]
[1763425905727,7.05578142,3027.2,3027.1,0.6764]
[1763425906222,7.05578142,3027.2,3027.1,1.1585]
[1763425907947,7.05578142,3027.2,3027.1,1.77435]
[1763425909150,7.05578142,3027.2,3027.1,6.77435]
[1763425909748,0.90699264,3027.2,3027.1,6.77435]
[1763425912654,0.90699264,3027.2,3027.1,9.15181795]
[1763425913146,0.90699264,3027.2,3027.1,10.1460761]
[1763425913645,6.14878878,3028.0,3027.1,10.5515801]
[1763425913844,6.14878878,3028.0,3027.5,0.488]
[1763425914054,7.05578142,3028.0,3027.9,0.488]
[1763425914752,7.05578142,3028.0,3027.9,0.9701]
[1763425915833,6.14878878,3028.0,3027.9,0.9701]
[1763425916035,7.05578142,3028.0,3027.9,0.9701]
[1763425916248,7.05578142,3028.0,3027.9,1.9039464]
[1763425916952,7.05578142,3028.0,3027.9,1.9641506]
[1763425917159,7.05578142,3028.0,3027.9,5.9701]
[1763425917747,7.05578142,3028.0,3027.9,5.488]
[1763425918129,7.05578142,3028.0,3027.9,0.488]
[1763425918827,7.05578142,3028.0,3027.9,0.9701]
[1763425919025,7.05578142,3028.0,3027.9,5.9701]
[1763425919227,7.05578142,3028.0,3027.9,6.90395134]
[1763425919459,7.05578142,3028.0,3027.9,9.27826474]
[1763425919655,7.05578142,3028.0,3027.9,5.0]
[1763425920157,0.90699264,3027.9,3027.7,2.3743134]
[1763425920557,0.90699264,3027.9,3027.8,0.488]
[1763425920766,0.90699264,3027.9,3027.7,3.36841341]
[1763425921059,0.90699264,3027.9,3027.5,2.3743134]
[1763425921060,0.2643,3027.8,3027.5,2.3743134]
[1763425921371,7.05578142,3027.6,3027.5,2.3743134]
[1763425921584,7.53148142,3027.6,3027.5,2.3743134]
[1763425921872,7.05578142,3027.6,3027.5,2.3743134]
[1763425922066,0.90699264,3027.5,3027.4,2.3743134]
[1763425922371,0.2643,3027.3,3027.2,5.0]
[1763425922775,0.74,3027.3,3027.2,5.0]
[1763425922950,8.09133971,3027.3,3027.2,5.0]
[1763425923277,0.90699264,3027.2,3026.8,0.001]
[1763425923780,1.38269264,3027.2,3026.8,0.001]
[1763425924155,0.90699264,3027.2,3027.0,0.001]
[1763425924462,0.4778,3027.1,3027.0,0.001]
[1763425924660,1.52291397,3027.1,3027.0,0.001]
[1763425925487,7.20473726,3027.1,3027.0,0.001]
[1763425925682,1.31249664,3026.7,3026.5,5.0]
[1763425925844,0.0028,3026.6,3026.5,5.0]
[1763425926050,2.05874098,3026.6,3025.4,2.3743134]
[1763425926280,7.35133971,3025.6,3025.5,0.4505]
[1763425926748,0.90699264,3025.6,3025.5,3.3226134]
[1763425927081,0.90699264,3025.6,3025.5,5.9483]
[1763425927901,0.90699264,3025.6,3025.5,5.4978]
[1763425928058,7.35133971,3025.6,3025.5,8.32391945]
[1763425928247,7.35133971,3025.6,3025.5,5.9483]
[1763425929198,0.90699264,3025.6,3025.5,5.9483]
[1763425929856,0.90699264,3025.6,3025.5,5.98135238]
[1763425930060,0.90699264,3025.6,3025.5,6.38685638]
[1763425930259,6.44434707,3026.5,3025.6,0.405504]
[1763425930565,6.44434707,3027.0,3026.4,0.6825]
[1763425930767,0.90699264,3026.9,3026.4,0.6825]
[1763425930990,6.44434707,3026.5,3026.4,0.4978]
[1763425931193,7.35133971,3026.5,3026.4,5.4978]
[1763425931485,6.44434707,3026.5,3026.4,5.9483]
[1763425931691,6.44434707,3026.5,3026.4,5.4978]
[1763425931885,7.35133971,3026.5,3026.4,5.4978]
[1763425932186,7.35133971,3026.5,3026.4,6.51655]
[1763425933056,7.35133971,3026.5,3026.4,6.06605]
[1763425933288,7.35133971,3026.5,3026.4,6.51655]
[1763425933469,7.35133971,3026.5,3026.4,6.06605]
[1763425933666,7.35133971,3026.5,3026.4,5.4978]
[1763425933885,7.35133971,3026.5,3026.4,5.9483]
[1763425934091,7.35133971,3026.5,3026.4,5.4978]
[1763425934771,7.35133971,3026.5,3026.4,5.0]
[1763425934968,7.61383971,3026.5,3026.4,5.0]
[1763425935170,0.90699264,3026.4,3026.1,5.0]
[1763425935468,0.0047,3026.2,3026.1,5.0]
[1763425935793,0.4809,3026.2,3026.1,5.0]
[1763425936090,0.4809,3026.2,3025.3,5.0]
[1763425936260,0.90699264,3025.5,3025.3,5.80112382]
[1763425936490,0.90699264,3025.5,3025.3,6.25162382]
[1763425936684,0.90699264,3025.5,3025.3,5.0]
[1763425936884,0.7424,3025.4,3025.3,5.0]
[1763425937086,0.2683,3025.4,3025.1,5.0]
[1763425937694,0.90699264,3025.5,3025.3,0.4978]
[1763425937895,0.90699264,3025.5,3025.4,0.4978]
[1763425938909,0.90699264,3025.5,3025.4,0.9741]
[1763425939114,0.90699264,3025.5,3025.4,5.0]
[1763425939716,0.90699264,3025.5,3025.4,5.4951]
[1763425940013,0.90699264,3025.5,3025.4,5.9714]
[1763425940312,0.90699264,3025.5,3025.4,5.4951]
[1763425940902,0.90699264,3025.5,3025.4,5.0]
[1763425941083,0.90699264,3025.5,3025.0,5.0]
[1763425941084,1.18979264,3025.5,3025.0,5.0]
[1763425941288,7.35133971,3025.1,3025.0,5.0]
[1763425941495,0.90699264,3025.1,3025.0,5.0]
[1763425941694,0.90699264,3025.1,3024.6,1.17971662]
[1763425941695,8.49704371,3025.1,3023.6,2.37233824]
[1763425941916,1.07699264,3023.7,3023.3,0.1823]
[1763425942214,1.07699264,3023.7,3023.4,0.4763]
[1763425942518,1.07699264,3023.7,3023.1,0.1823]
[1763425942519,0.1956,3023.6,3023.1,0.1823]
[1763425942731,7.35133971,3023.2,3023.1,0.1823]
[1763425942925,0.90699264,3023.1,3022.6,0.1823]
[1763425943217,0.90699264,3023.1,3019.9,0.1823]
[1763425943218,0.90699264,3022.6,3021.9,0.6586]
[1763425943423,0.90699264,3022.6,3022.5,0.4951]
[1763425943720,0.90699264,3023.1,3022.5,0.4951]
[1763425943891,6.44434707,3022.7,3022.5,0.4951]
[1763425944096,6.44434707,3022.7,3022.5,0.9714]
[1763425944286,6.44434707,3022.7,3022.6,0.4951]
[1763425944489,6.44434707,3022.7,3022.6,0.9714]
[1763425944716,7.35133971,3022.7,3022.6,0.9714]
[1763425945286,0.90699264,3022.6,3022.2,0.4763]
[1763425946335,0.90699264,3022.6,3021.9,0.6586]
[1763425946832,0.90699264,3022.6,3021.9,0.1823]
[1763425947040,6.44434707,3022.2,3021.3,0.4763]
[1763425947235,0.90699264,3022.1,3021.3,0.4763]
[1763425947755,0.90699264,3022.1,3021.4,0.03309723]
[1763425948140,6.44434707,3022.7,3022.0,0.4951]
[1763425948428,0.90699264,3022.7,3022.1,0.4951]
[1763425948722,0.90699264,3022.7,3021.6,0.405504]
[1763425948723,1.36419264,3022.7,3021.6,0.405504]
[1763425949042,1.36419264,3022.7,3021.7,0.4763]
[1763425949327,0.90699264,3022.7,3021.8,0.03309285]
[1763425949730,0.90699264,3022.7,3021.9,0.4763]
[1763425949929,0.90699264,3022.7,3022.0,0.03309066]
[1763425950229,0.90699264,3022.7,3021.9,0.4763]
[1763425951437,6.44434707,3023.3,3022.6,0.6774]
[1763425951642,6.44434707,3023.7,3022.7,0.9714]
[1763425951813,6.44434707,3023.7,3022.8,0.4763]
[1763425952336,0.1956,3023.9,3022.6,0.1823]
[1763425952337,6.44434707,3023.2,3022.6,0.1823]
[1763425952511,0.90699264,3023.1,3022.6,0.1823]
[1763425952842,6.44434707,3023.2,3022.6,0.6586]
[1763425953037,0.90699264,3023.1,3022.6,0.6586]
[1763425953540,0.90699264,3023.1,3022.4,0.8409]
[1763425953847,0.90699264,3023.1,3022.4,0.1823]
[1763425954411,0.90699264,3023.1,3022.2,0.8409]
[1763425954412,0.90699264,3022.6,3022.2,0.8409]
[1763425954617,0.90699264,3022.6,3022.1,0.1823]
[1763425955040,0.90699264,3022.6,3021.9,1.3172]
[1763425955442,0.90699264,3022.6,3021.9,0.8409]
[1763425955716,0.1854,3022.8,3021.3,0.4763]
[1763425955717,0.90699264,3022.1,3021.3,0.4763]
[1763425958235,0.90699264,3022.1,3021.4,0.03309723]
[1763425958449,0.90699264,3022.1,3021.3,0.4763]
[1763425959130,6.44434707,3021.7,3021.1,0.8409]
[1763425959329,6.44434707,3021.7,3021.0,0.1823]
[1763425959330,0.89898921,3021.6,3021.0,0.1823]
[1763425959730,6.44434707,3021.1,3020.7,0.8409]
[1763425959934,6.69544707,3021.1,3020.4,0.1866]
[1763425960357,6.69544707,3021.1,3020.3,0.4617]
[1763425960660,6.69544707,3021.1,3020.2,0.1866]
[1763425960856,6.44434707,3021.1,3020.3,0.4617]
[1763425961219,0.90699264,3021.0,3020.3,0.4617]
[1763425962059,0.193,3020.9,3019.9,0.1823]
[1763425962276,1.15799264,3020.0,3018.7,0.4617]
[1763425962436,0.90699264,3019.4,3019.1,0.99670588]
[1763425962634,0.90699264,3019.4,3018.9,0.4617]
[1763425962968,0.90699264,3019.4,3019.0,0.644]
[1763425963155,0.193,3020.3,3019.3,0.4737]
[1763425963499,1.09999264,3020.3,3019.4,0.4737]
[1763425963779,0.90699264,3019.8,3019.2,0.4617]
[1763425964129,0.90699264,3019.8,3019.0,0.1823]
[1763425964365,0.90699264,3019.6,3019.1,0.4617]
[1763425965126,0.90699264,3019.6,3019.5,0.4737]
[1763425965533,0.90699264,3019.6,3019.5,0.9354]
[1763425965947,0.87368182,3020.8,3019.5,0.9354]
[1763425965948,6.44434707,3020.2,3019.5,0.9354]
[1763425966238,6.44434707,3020.7,3020.0,0.1464]
[1763425966451,0.90699264,3020.6,3020.0,0.1464]
[1763425966652,6.44434707,3020.7,3020.6,0.6603]
[1763425966860,7.35133971,3020.7,3020.6,0.6603]
[1763425967058,6.44434707,3020.7,3020.6,1.122]
[1763425968179,7.35133971,3020.7,3020.6,1.122]
[1763425968637,7.35133971,3020.7,3020.6,0.4737]
[1763425968844,8.08647368,3020.7,3020.3,0.1866]
[1763425969185,0.90699264,3020.6,3020.1,0.4617]
[1763425969484,8.08647368,3020.7,3020.1,0.1866]
[1763425969485,7.35133971,3020.2,3020.1,0.1866]
[1763425969840,7.35133971,3020.2,3020.1,1.122]
[1763425970791,0.99663966,3022.5,3020.1,1.122]
[1763425970958,6.44434707,3021.6,3021.3,0.1866]
[1763425971302,0.90699264,3021.5,3021.3,0.1866]
[1763425971785,0.90699264,3021.5,3020.9,0.4617]
[1763425972082,6.44434707,3021.1,3020.5,0.4617]
[1763425972255,6.44434707,3021.1,3020.1,0.1866]
[1763425972256,6.44434707,3020.6,3020.1,0.1866]
[1763425972460,0.90699264,3020.5,3020.1,0.1866]